bitfinex/quotes_BTCUSD_20240728
["timestamp","ask_amount","ask_price","bid_price","bid_amount"]
[1722192454188,0.03983657,68301.0,68300.0,0.64838044]
[1722192454426,0.17136751,68301.0,68300.0,0.64838044]
[1722192455280,0.15696457,68301.0,68300.0,0.64838044]
[1722192455455,0.03983657,68301.0,68300.0,0.64838044]
[1722192456080,0.03983657,68301.0,68300.0,0.58818044]
[1722192456081,0.49938635,68301.0,68300.0,0.58818044]
[1722192456487,0.38317561,68301.0,68300.0,0.58818044]
[1722192457308,0.43210689,68301.0,68300.0,0.58818044]
[1722192459458,0.454745,68301.0,68300.0,0.58818044]
[1722192460557,0.43176162,68301.0,68300.0,0.58818044]
[1722192460910,0.19750462,68301.0,68300.0,0.58818044]
[1722192461234,0.43176162,68301.0,68300.0,0.58818044]
[1722192461617,0.19750462,68301.0,68300.0,0.58818044]
[1722192461793,0.08037662,68301.0,68300.0,0.58818044]
[1722192462393,0.19750462,68301.0,68300.0,0.58818044]
[1722192462627,0.19766921,68301.0,68300.0,0.58818044]
[1722192463409,0.08054121,68301.0,68300.0,0.58818044]
[1722192463610,0.27935459,68301.0,68300.0,0.58818044]
[1722192464071,0.10352459,68301.0,68300.0,0.70531044]
[1722192464467,0.10352459,68301.0,68300.0,0.93957044]
[1722192465781,0.04030327,68301.0,68300.0,0.93957044]
[1722192465973,0.10342002,68301.0,68300.0,0.93957044]
[1722192468420,0.08043664,68301.0,68300.0,0.93957044]
[1722192469207,0.08054809,68301.0,68300.0,1.17383044]
[1722192469355,0.08054809,68301.0,68300.0,1.23613044]
[1722192471528,0.08054809,68301.0,68300.0,1.47039044]
[1722192471752,0.1035307,68301.0,68300.0,1.47039044]
[1722192471943,0.12697279,68301.0,68300.0,1.47039044]
[1722192472141,0.1050386,68301.0,68300.0,1.49339044]
[1722192472432,0.02498261,68301.0,68300.0,1.49339044]
[1722192472630,0.03933079,68301.0,68300.0,1.47200253]
[1722192472832,0.01634818,68301.0,68300.0,1.49343304]
[1722192473415,0.001,68301.0,68300.0,1.49343304]
[1722192473572,0.001,68301.0,68300.0,1.72769304]
[1722192473573,0.01511033,68301.0,68300.0,1.72769304]
[1722192473773,0.01511033,68301.0,68300.0,1.48643304]
[1722192473774,0.05898282,68301.0,68300.0,1.48643304]
[1722192473998,0.05898282,68301.0,68300.0,1.53643304]
[1722192474215,0.05998282,68301.0,68300.0,1.55043304]
[1722192474936,0.04587249,68301.0,68300.0,1.55043304]
[1722192475092,0.002,68301.0,68300.0,1.55043304]
[1722192475299,0.04587249,68301.0,68300.0,1.55043304]
[1722192475700,0.06885938,68301.0,68300.0,1.55043304]
[1722192476135,0.04587856,68301.0,68300.0,1.55043304]
[1722192476768,0.04587856,68301.0,68300.0,1.78469304]
[1722192477459,0.002,68301.0,68300.0,2.04119304]
[1722192477822,0.002,68301.0,68300.0,1.93919304]
[1722192478258,0.001,68301.0,68300.0,2.04119304]
[1722192478471,0.001,68301.0,68300.0,1.79893304]
[1722192478681,0.001,68301.0,68300.0,1.81293304]
[1722192479045,0.001,68301.0,68300.0,2.04719304]
[1722192479552,0.02297954,68301.0,68300.0,2.04119304]
[1722192479800,0.00084,68308.0,68307.0,0.819826]
[1722192479954,0.00084,68308.0,68307.0,1.19487417]
[1722192480370,0.06768559,68308.0,68307.0,1.19487417]
[1722192480765,0.0238192,68308.0,68307.0,1.19487417]
[1722192480972,0.06868559,68308.0,68307.0,1.20787417]
[1722192481173,0.04570639,68308.0,68307.0,1.20787417]
[1722192481401,0.04570161,68308.0,68307.0,1.20787417]
[1722192481642,0.00184,68308.0,68307.0,1.22187417]
[1722192482041,0.00184,68308.0,68307.0,1.50611017]
[1722192483432,0.00184,68308.0,68307.0,0.77723817]
[1722192483638,0.0456752,68308.0,68307.0,0.77723817]
[1722192483841,0.0456752,68308.0,68307.0,1.01147417]
[1722192484055,0.00184,68308.0,68307.0,1.01147417]
[1722192484471,0.02481929,68308.0,68307.0,1.01147417]
[1722192484687,0.01636963,68308.0,68307.0,0.77723817]
[1722192484890,0.10558855,68308.0,68307.0,0.71493817]
[1722192485421,0.10403435,68308.0,68307.0,0.71493817]
[1722192486019,0.12595054,68308.0,68307.0,0.71493817]
[1722192486429,0.12594394,68308.0,68307.0,0.71493817]
[1722192486626,0.12594532,68308.0,68307.0,0.39890217]
[1722192486869,0.01636962,68308.0,68307.0,0.39890217]
[1722192487153,0.01818587,68308.0,68307.0,0.39890217]
[1722192487300,0.01818587,68308.0,68307.0,0.63313817]
[1722192487464,0.00184,68308.0,68307.0,0.63313817]
[1722192487668,0.01664847,68308.0,68307.0,0.63313817]
[1722192487871,0.01664847,68308.0,68307.0,0.39890217]
[1722192488703,0.01664847,68308.0,68307.0,0.16466617]
[1722192488938,0.01664847,68308.0,68307.0,0.04854817]
[1722192489288,0.118956,68308.0,68307.0,0.04854817]
[1722192489456,0.41903941,68308.0,68307.0,0.04854817]
[1722192489759,0.49298521,68308.0,68307.0,0.04854817]
[1722192489912,0.49298521,68308.0,68307.0,0.027]
[1722192490122,0.72621821,68308.0,68307.0,0.014]
[1722192490395,0.72621821,68308.0,68300.0,0.47979253]
[1722192490396,0.117122,68305.0,68300.0,0.47979253]
[1722192490581,0.13153818,68303.0,68300.0,0.47979253]
[1722192490782,0.01480847,68304.0,68301.0,0.1386459]
[1722192490927,0.01482255,68303.0,68301.0,0.1386459]
[1722192491130,0.01482255,68302.0,68301.0,0.1386459]
[1722192492388,0.01482255,68302.0,68301.0,0.0215179]
[1722192493984,0.01482255,68302.0,68301.0,0.0355179]
[1722192494189,0.01482255,68302.0,68301.0,0.0465179]
[1722192494190,0.118126,68302.0,68301.0,0.0465179]
[1722192494390,0.13236052,68302.0,68301.0,0.0465179]
[1722192494841,0.13232895,68302.0,68301.0,0.0465179]
[1722192495550,0.01520295,68302.0,68301.0,0.0465179]
[1722192496199,0.0381853,68302.0,68301.0,0.0465179]
[1722192496403,0.01520295,68302.0,68301.0,0.0465179]
[1722192496841,0.0150813,68302.0,68301.0,0.0465179]
[1722192497371,0.001,68302.0,68301.0,0.0465179]
[1722192497547,0.01508091,68302.0,68301.0,0.0465179]
[1722192497753,0.06384166,68302.0,68301.0,0.0465179]
[1722192498158,0.41522066,68302.0,68301.0,0.0465179]
[1722192498375,0.41522066,68302.0,68301.0,0.025]
[1722192498874,0.41522066,68302.0,68301.0,0.04655629]
[1722192500002,0.43820327,68302.0,68301.0,0.04655629]
[1722192500142,0.41522066,68302.0,68301.0,0.04655629]
[1722192500344,0.41522066,68302.0,68301.0,0.025]
[1722192500599,0.41415407,68302.0,68301.0,0.025]
[1722192501173,0.41415407,68302.0,68301.0,0.04660823]
[1722192501634,0.06277507,68302.0,68301.0,0.04660823]
[1722192501843,0.06277507,68302.0,68301.0,0.18990823]
[1722192502117,0.0145135,68302.0,68301.0,0.18990823]
[1722192502551,0.0145135,68302.0,68301.0,0.30703623]
[1722192502755,0.14612853,68302.0,68301.0,0.54129323]
[1722192502916,0.14612853,68302.0,68301.0,0.77555023]
[1722192503080,0.0145135,68302.0,68301.0,0.77555023]
[1722192503523,0.03749597,68302.0,68301.0,0.77555023]
[1722192503731,0.0145135,68302.0,68301.0,0.77555023]
[1722192503927,0.03783461,68302.0,68301.0,0.77555023]
[1722192504148,0.03783461,68302.0,68301.0,0.54129323]
[1722192504357,0.02398234,68302.0,68301.0,0.54129323]
[1722192504514,0.01485227,68302.0,68301.0,0.54129323]
[1722192504911,0.01485227,68302.0,68301.0,0.77555023]
[1722192505163,0.01485227,68302.0,68301.0,0.54129323]
[1722192505947,0.01485227,68302.0,68301.0,0.77555023]
[1722192506667,0.01486038,68302.0,68301.0,0.54129323]
[1722192506894,0.01486038,68302.0,68301.0,0.54221723]
[1722192507616,0.03784221,68302.0,68301.0,0.54221723]
[1722192508032,0.03784221,68302.0,68301.0,0.77647423]
[1722192508425,0.01486038,68302.0,68301.0,0.77647423]
[1722192508981,0.01486038,68302.0,68301.0,0.54221723]
[1722192509141,0.01486038,68302.0,68301.0,0.77647423]
[1722192510695,0.12455462,68302.0,68301.0,0.77647423]
[1722192511262,0.12455462,68302.0,68301.0,1.01073123]
[1722192511691,0.14753645,68302.0,68301.0,0.77647423]
[1722192512030,0.03784221,68302.0,68301.0,0.77647423]
[1722192513423,0.16947648,68302.0,68301.0,0.77647423]
[1722192513647,0.02398183,68302.0,68301.0,0.77647423]
[1722192513852,0.03791278,68302.0,68301.0,0.77647423]
[1722192514095,0.03791455,68302.0,68301.0,0.77647423]
[1722192514282,0.001,68302.0,68301.0,0.47701723]
[1722192514459,0.04965855,68302.0,68301.0,0.71127423]
[1722192514683,0.14659798,68302.0,68301.0,0.71127423]
[1722192515096,0.01493272,68302.0,68301.0,0.71127423]
[1722192515920,0.03791459,68302.0,68301.0,0.71127423]
[1722192516129,0.03780213,68302.0,68301.0,0.71127423]
[1722192516581,0.0863524,68302.0,68301.0,0.71127423]
[1722192516754,0.02398187,68302.0,68301.0,0.71127423]
[1722192516954,0.08640299,68302.0,68301.0,0.71127423]
[1722192517471,0.21806825,68302.0,68301.0,0.71127423]
[1722192519096,0.03782804,68302.0,68301.0,0.71127423]
[1722192520145,0.03771917,68302.0,68301.0,0.71127423]
[1722192520694,0.0147373,68302.0,68301.0,0.71127423]
[1722192522848,0.0147373,68302.0,68301.0,0.47701723]
[1722192523047,0.06307564,68302.0,68301.0,0.47701723]
[1722192523278,0.06307564,68302.0,68301.0,0.39891723]
[1722192523485,0.04934395,68302.0,68301.0,0.39891723]
[1722192523628,0.01460227,68302.0,68301.0,0.39891723]
[1722192523852,0.001,68302.0,68301.0,0.39891723]
[1722192524038,0.03768744,68302.0,68301.0,0.39891723]
[1722192524241,0.06314684,68302.0,68301.0,0.39891723]
[1722192524602,0.06314684,68302.0,68301.0,0.63317423]
[1722192525841,0.06357108,68302.0,68301.0,0.63317423]
[1722192526458,0.001,68302.0,68301.0,0.63317423]
[1722192526664,0.0633255,68302.0,68301.0,0.63317423]
[1722192527764,0.08630763,68302.0,68301.0,0.63317423]
[1722192527964,0.0633255,68302.0,68301.0,0.63317423]
[1722192530090,0.06302113,68302.0,68301.0,0.63317423]
[1722192531363,0.23423371,68302.0,68301.0,0.63317423]
[1722192531907,0.23423371,68302.0,68301.0,0.16466023]
[1722192531908,0.08600326,68302.0,68301.0,0.16466023]
[1722192532672,0.08600326,68302.0,68301.0,0.39891723]
[1722192533102,0.001,68302.0,68301.0,0.39891723]
[1722192533298,0.01471351,68302.0,68301.0,0.39891723]
[1722192533505,0.001,68302.0,68301.0,0.39891723]
[1722192533663,0.1253267,68302.0,68301.0,0.39891723]
[1722192535232,0.14830921,68302.0,68301.0,0.39891723]
[1722192535593,0.1253267,68302.0,68301.0,0.39891723]
[1722192535832,0.06316335,68302.0,68301.0,0.39891723]
[1722192536487,0.06305589,68302.0,68301.0,0.39891723]
[1722192538861,0.0860384,68302.0,68301.0,0.39891723]
[1722192539061,0.0860384,68302.0,68301.0,0.16466023]
[1722192539737,0.02398251,68302.0,68301.0,0.16466023]
[1722192540345,0.08606685,68302.0,68301.0,0.16466023]
[1722192541022,0.20319285,68302.0,68301.0,0.04753223]
[1722192541776,0.08606685,68302.0,68301.0,0.04753223]
[1722192541959,0.06308434,68302.0,68301.0,0.04753223]
[1722192542156,0.001,68302.0,68301.0,0.04753223]
[1722192542359,0.0494768,68302.0,68301.0,0.04753223]
[1722192542584,0.001,68302.0,68301.0,0.16466023]
[1722192542864,0.06321848,68302.0,68301.0,0.16466023]
[1722192543200,0.18034448,68302.0,68301.0,0.04753223]
[1722192543397,0.41459748,68302.0,68301.0,0.04753223]
[1722192544196,0.64885048,68302.0,68301.0,0.04753223]
[1722192544400,1.02800348,68302.0,68301.0,0.04753223]
[1722192545170,1.02800348,68302.0,68301.0,0.025924]
[1722192545372,1.02800348,68302.0,68301.0,0.011924]
[1722192545373,1.09702166,68302.0,68301.0,0.011924]
[1722192545675,1.43127466,68302.0,68301.0,0.017924]
[1722192545976,1.43127466,68302.0,68301.0,0.011924]
[1722192546176,1.43027466,68302.0,68301.0,0.000924]
[1722192546397,1.58053423,68302.0,68301.0,0.003924]
[1722192546535,1.34628123,68302.0,68301.0,0.003924]
[1722192547066,1.34628123,68302.0,68301.0,0.000924]
[1722192547263,1.35428123,68302.0,68301.0,0.001924]
[1722192547669,1.35728123,68302.0,68301.0,0.001924]
[1722192548070,1.35728123,68302.0,68300.0,0.47979253]
[1722192548071,0.969899,68301.0,68300.0,0.43076455]
[1722192548266,1.52721577,68301.0,68300.0,0.39033355]
[1722192548468,1.70407199,68301.0,68300.0,0.2703235]
[1722192548718,1.76217503,68301.0,68300.0,0.2703235]
[1722192548999,1.76217503,68301.0,68300.0,0.25034797]
[1722192549704,1.61649492,68301.0,68300.0,0.25034797]
[1722192549908,1.38223792,68301.0,68300.0,0.25034797]
[1722192550317,1.39523792,68301.0,68300.0,0.25134797]
[1722192551121,1.40323792,68301.0,68300.0,0.25234797]
[1722192551694,1.40281532,68301.0,68300.0,0.25234797]
[1722192551860,1.55307489,68301.0,68300.0,0.25234797]
[1722192552161,1.47155857,68301.0,68300.0,0.25234797]
[1722192552285,1.40297965,68301.0,68300.0,0.25234797]
[1722192553430,1.45100116,68301.0,68300.0,0.25234797]
[1722192553638,1.40297965,68301.0,68300.0,0.25234797]
[1722192553877,1.40439238,68301.0,68300.0,0.25234797]
[1722192554789,1.22271173,68301.0,68300.0,0.25234797]
[1722192555005,1.46687133,68301.0,68300.0,0.25234797]
[1722192555205,1.46842553,68301.0,68300.0,0.25234797]
[1722192555556,1.36687133,68301.0,68300.0,0.25234797]
[1722192555764,1.46813576,68301.0,68300.0,0.25234797]
[1722192555969,1.46687133,68301.0,68300.0,0.25234797]
[1722192556168,1.40251846,68301.0,68300.0,0.25234797]
[1722192556610,1.35251846,68301.0,68300.0,0.25234797]
[1722192556823,1.40251846,68301.0,68300.0,0.25234797]
[1722192557424,1.30251846,68301.0,68300.0,0.25234797]
[1722192558153,0.69980446,68301.0,68300.0,0.25234797]
[1722192558545,0.93561566,68301.0,68300.0,0.25234797]
[1722192558721,0.70135866,68301.0,68300.0,0.25234797]
[1722192558922,0.69980446,68301.0,68300.0,0.25234797]
[1722192559329,0.93406146,68301.0,68300.0,0.25234797]
[1722192559524,0.93561566,68301.0,68300.0,0.25234797]
[1722192559745,0.93406146,68301.0,68300.0,0.25234797]
[1722192559940,0.61860446,68301.0,68300.0,0.25234797]
[1722192560141,0.62015866,68301.0,68300.0,0.25234797]
[1722192560342,0.55515866,68301.0,68300.0,0.25234797]
[1722192560775,0.78941566,68301.0,68300.0,0.25234797]
[1722192560992,0.55515866,68301.0,68300.0,0.25234797]
[1722192561187,0.55360446,68301.0,68300.0,0.25234797]
[1722192561418,0.55346278,68301.0,68300.0,0.25234797]
[1722192561549,0.55501698,68301.0,68300.0,0.25234797]
[1722192561750,0.4739392,68301.0,68300.0,0.25234797]
[1722192561959,0.78771977,68301.0,68300.0,0.25234797]
[1722192562256,0.55501697,68301.0,68300.0,0.25234797]
[1722192563052,0.55501697,68301.0,68300.0,0.27236953]
[1722192563257,0.55501697,68301.0,68300.0,0.25234797]
[1722192564258,0.20207777,68301.0,68300.0,0.25234797]
[1722192564495,0.20207777,68301.0,68300.0,0.38949953]
[1722192564496,0.10207777,68301.0,68300.0,0.38949953]
[1722192564721,0.25002489,68301.0,68300.0,0.27236953]
[1722192564927,0.10207777,68301.0,68300.0,0.27236953]
[1722192565121,0.10363197,68301.0,68300.0,0.27236953]
[1722192565336,0.08263197,68301.0,68300.0,0.27036953]
[1722192565568,0.08263197,68301.0,68300.0,0.27136953]
[1722192565569,0.08863197,68301.0,68300.0,0.27136953]
[1722192565792,0.09263197,68301.0,68300.0,0.27136953]
[1722192566033,0.09107777,68301.0,68300.0,0.27136953]
[1722192566265,0.19263197,68301.0,68300.0,0.27136953]
[1722192566474,0.19107777,68301.0,68300.0,0.27136953]
[1722192566852,0.19107777,68301.0,68300.0,0.38849953]
[1722192567055,0.19107777,68301.0,68300.0,0.27136953]
[1722192567390,0.19107777,68301.0,68300.0,0.38849953]
[1722192567600,0.19107777,68301.0,68300.0,0.27136953]
[1722192567830,0.1115542,68301.0,68300.0,0.27136953]
[1722192568069,0.0905938,68301.0,68300.0,0.27136953]
[1722192568311,0.1905938,68301.0,68300.0,0.38849953]
[1722192568534,0.192148,68301.0,68300.0,0.38849953]
[1722192568709,0.1905938,68301.0,68300.0,0.38849953]
[1722192569153,0.092148,68301.0,68300.0,0.85701953]
[1722192569361,0.092148,68301.0,68300.0,1.23327953]
[1722192569362,0.0905938,68301.0,68300.0,1.23327953]
[1722192569568,0.03315136,68301.0,68300.0,1.23327953]
[1722192569721,0.12083032,68301.0,68300.0,1.23327953]
[1722192570124,0.12167032,68301.0,68300.0,1.23327953]
[1722192570321,0.09974969,68301.0,68300.0,1.23327953]
[1722192571021,0.03371582,68301.0,68300.0,1.23227953]
[1722192571243,0.08946927,68301.0,68300.0,1.23227953]
[1722192571410,0.00084,68301.0,68300.0,1.23327953]
[1722192571637,0.02362565,68301.0,68300.0,1.23327953]
[1722192571863,0.02362565,68301.0,68300.0,1.23227953]
[1722192572289,0.02362565,68301.0,68300.0,1.23527953]
[1722192572497,0.02362565,68301.0,68300.0,1.23827953]
[1722192572723,0.02362565,68301.0,68300.0,1.23527953]
[1722192572866,0.08937045,68301.0,68300.0,1.23527953]
[1722192573065,0.02362565,68301.0,68300.0,1.24027953]
[1722192573734,0.02364859,68301.0,68300.0,1.24027953]
[1722192574296,0.02359703,68301.0,68300.0,1.24027953]
[1722192574461,0.08933839,68301.0,68300.0,1.24027953]
[1722192577430,0.02348267,68301.0,68300.0,1.24027953]
[1722192577639,0.08922024,68301.0,68300.0,1.32447953]
[1722192577858,0.02348267,68301.0,68300.0,1.32447953]
[1722192578170,0.1330453,68301.0,68300.0,1.32447953]
[1722192580666,0.00084,68301.0,68300.0,1.32447953]
[1722192580913,0.13258836,68301.0,68300.0,1.09021953]
[1722192581313,0.13258907,68301.0,68300.0,1.09021953]
[1722192582334,0.15557162,68301.0,68300.0,1.09021953]
[1722192583308,0.15525057,68301.0,68300.0,1.09021953]
[1722192583740,0.13226802,68301.0,68300.0,1.09021953]
[1722192583946,0.13226677,68301.0,68300.0,1.09021953]
[1722192584314,0.13226677,68301.0,68300.0,0.94571953]
[1722192585156,0.02270775,68301.0,68300.0,0.71145953]
[1722192585477,0.02270775,68301.0,68300.0,0.27836953]
[1722192585676,0.56355316,68301.0,68300.0,0.27836953]
[1722192585899,0.66633933,68301.0,68300.0,0.27836953]
[1722192586452,0.58001897,68301.0,68300.0,0.27836953]
[1722192586878,0.58001897,68301.0,68300.0,0.25834797]
[1722192587091,0.3767639,68301.0,68300.0,0.25534797]
[1722192587279,0.60553497,68301.0,68300.0,0.27529591]
[1722192587712,0.60553497,68301.0,68300.0,0.27029591]
[1722192587881,0.73705946,68301.0,68300.0,0.27029591]
[1722192589133,0.60553497,68301.0,68300.0,0.27029591]
[1722192590122,0.45759897,68301.0,68300.0,0.27029591]
[1722192590381,0.60617132,68301.0,68300.0,0.27029591]
[1722192590550,0.45822839,68301.0,68300.0,0.27029591]
[1722192590751,0.3787639,68301.0,68300.0,0.27029591]
[1722192590951,0.77752154,68301.0,68300.0,0.27029591]
[1722192591327,0.77752154,68301.0,68300.0,0.25034797]
[1722192591328,0.77596734,68301.0,68300.0,0.25034797]
[1722192591587,0.77752154,68301.0,68300.0,0.25034797]
[1722192593734,0.69246782,68301.0,68300.0,0.25034797]
[1722192593933,0.84042027,68301.0,68300.0,0.25034797]
[1722192594537,0.69245919,68301.0,68300.0,0.25034797]
[1722192596990,0.69234659,68301.0,68300.0,0.25034797]
[1722192597346,0.69234659,68301.0,68300.0,0.27029591]
[1722192599416,0.45808959,68301.0,68300.0,0.27029591]
[1722192599617,0.45653539,68301.0,68300.0,0.27029591]
[1722192600219,0.69075297,68301.0,68300.0,0.27029591]
[1722192600814,0.81251782,68301.0,68300.0,0.27029591]
[1722192601501,0.81251782,68301.0,68300.0,0.25034797]
[1722192601711,1.11723731,68301.0,68300.0,0.25034797]
[1722192602093,1.11879151,68301.0,68300.0,0.25034797]
[1722192602652,1.1176831,68301.0,68300.0,0.25034797]
[1722192603824,1.1192373,68301.0,68300.0,0.25034797]
[1722192604241,0.8849803,68301.0,68300.0,0.25034797]
[1722192605714,0.88493675,68301.0,68300.0,0.25034797]
[1722192606118,0.80893675,68301.0,68300.0,0.25034797]
[1722192606319,0.80738255,68301.0,68300.0,0.25034797]
[1722192606475,0.80893675,68301.0,68300.0,0.25034797]
[1722192608596,0.85968222,68301.0,68300.0,0.25034797]
[1722192609007,0.85776672,68301.0,68300.0,0.25034797]
[1722192609258,0.85932092,68301.0,68300.0,0.25034797]
[1722192609613,0.85732092,68301.0,68300.0,0.25034797]
[1722192610023,0.86132092,68301.0,68300.0,0.25034797]
[1722192610419,0.85732092,68301.0,68300.0,0.25034797]
[1722192610627,0.86432092,68301.0,68300.0,0.25134797]
[1722192610849,0.87332092,68301.0,68300.0,0.25234797]
[1722192611052,0.86632092,68301.0,68300.0,0.25134797]
[1722192611244,0.87332092,68301.0,68300.0,0.25234797]
[1722192611811,0.82257545,68301.0,68300.0,0.25234797]
[1722192612224,0.75407168,68301.0,68300.0,0.25234797]
[1722192612650,0.6754667,68301.0,68300.0,0.25234797]
[1722192612911,0.7540505,68301.0,68300.0,0.25234797]
[1722192613150,0.9883075,68301.0,68300.0,0.25234797]
[1722192613342,1.0793075,68301.0,68300.0,0.25134797]
[1722192613460,1.0813075,68301.0,68300.0,0.25134797]
[1722192613661,1.0813075,68301.0,68300.0,0.25234797]
[1722192613938,1.32276707,68301.0,68300.0,0.25234797]
[1722192615429,1.32309119,68301.0,68300.0,0.25234797]
[1722192618341,1.86879313,68301.0,68300.0,0.25234797]
[1722192618541,1.5968807,68301.0,68300.0,0.25234797]
[1722192618747,1.6947518,68301.0,68300.0,0.25234797]
[1722192619128,1.9200088,68301.0,68300.0,0.13077757]
[1722192619345,1.9200088,68301.0,68300.0,0.11277756]
[1722192619553,2.08226837,68301.0,68300.0,0.11377756]
[1722192620123,2.07026837,68301.0,68300.0,0.11277756]
[1722192620365,2.07726837,68301.0,68300.0,0.11277756]
[1722192620662,2.08726837,68301.0,68300.0,0.11377756]
[1722192620871,2.08726837,68301.0,68300.0,0.05377756]
[1722192621022,2.07726837,68301.0,68300.0,0.05277756]
[1722192621222,2.07726837,68301.0,68300.0,0.05377756]
[1722192621223,2.09126837,68301.0,68300.0,0.05377756]
[1722192621427,2.09126837,68301.0,68300.0,0.05277756]
[1722192621985,2.09172257,68301.0,68300.0,0.05277756]
[1722192622194,2.07772257,68301.0,68300.0,0.05177756]
[1722192622395,0.267144,68292.0,68291.0,0.002]
[1722192622603,0.597183,68282.0,68266.0,0.0764]
[1722192622819,0.597183,68282.0,68264.0,0.07512979]
[1722192622820,0.312878,68272.0,68264.0,0.07512979]
[1722192623015,0.8184153,68272.0,68264.0,0.07512979]
[1722192623219,0.6842153,68272.0,68271.0,0.0784]
[1722192623426,0.7342153,68272.0,68271.0,0.0784]
[1722192623640,1.0527713,68272.0,68271.0,0.0784]
[1722192623852,1.0527713,68272.0,68271.0,0.002]
[1722192624254,1.2190713,68272.0,68271.0,0.002]
[1722192624551,1.34891843,68272.0,68271.0,0.002]
[1722192624753,1.35191843,68272.0,68271.0,0.002]
[1722192625094,1.34891843,68272.0,68271.0,0.002]
[1722192625298,1.35391843,68272.0,68271.0,0.002]
[1722192625729,1.35191843,68272.0,68271.0,0.002]
[1722192625933,1.0557713,68272.0,68271.0,0.002]
[1722192626164,1.0617713,68272.0,68271.0,0.002]
[1722192626548,1.07576658,68272.0,68271.0,0.002]
[1722192626754,1.08576658,68272.0,68271.0,0.002]
[1722192626977,1.0697713,68272.0,68271.0,0.002]
[1722192627892,1.20131843,68272.0,68271.0,0.002]
[1722192628392,1.20239944,68272.0,68271.0,0.002]
[1722192628728,1.33383555,68272.0,68271.0,0.002]
[1722192629050,1.07085231,68272.0,68271.0,0.002]
[1722192629662,1.09384757,68272.0,68271.0,0.002]
[1722192630102,1.07085231,68272.0,68271.0,0.002]
[1722192631123,1.17085231,68272.0,68271.0,0.002]
[1722192631344,1.27085231,68272.0,68271.0,0.002]
[1722192631673,1.32968697,68272.0,68271.0,0.002]
[1722192631942,1.24548697,68272.0,68271.0,0.002]
[1722192632109,1.32961811,68272.0,68271.0,0.002]
[1722192632698,1.17935854,68272.0,68271.0,0.002]
[1722192633097,1.20235433,68272.0,68271.0,0.002]
[1722192633962,1.17935854,68272.0,68271.0,0.002]
[1722192634442,1.23809754,68272.0,68271.0,0.002]
[1722192635247,1.30319754,68272.0,68271.0,0.002]
[1722192635468,1.45345711,68272.0,68271.0,0.002]
[1722192635820,1.55345711,68272.0,68271.0,0.002924]
[1722192636139,1.63755354,68272.0,68271.0,0.002924]
[1722192637364,1.66055001,68272.0,68271.0,0.002924]
[1722192637593,1.63755354,68272.0,68271.0,0.002924]
[1722192637930,1.63759995,68272.0,68271.0,0.002924]
[1722192638348,1.65291984,68272.0,68271.0,0.002924]
[1722192638603,1.95086142,68272.0,68271.0,0.002924]
[1722192639288,1.80060185,68272.0,68271.0,0.002924]
[1722192639580,1.87750185,68272.0,68271.0,0.002924]
[1722192640358,1.72981984,68272.0,68271.0,0.002924]
[1722192640880,1.75281739,68272.0,68271.0,0.002924]
[1722192641081,1.65359729,68272.0,68271.0,0.002924]
[1722192641398,1.90285261,68272.0,68271.0,0.002924]
[1722192641525,1.80385686,68272.0,68271.0,0.002924]
[1722192641720,1.90285261,68272.0,68271.0,0.002924]
[1722192642483,1.92585261,68272.0,68271.0,0.002924]
[1722192643402,1.92585261,68272.0,68271.0,0.00044385]
[1722192644030,1.69869304,68272.0,68271.0,0.00044385]
[1722192644145,1.44939304,68272.0,68271.0,0.08294385]
[1722192644351,1.41714029,68272.0,68271.0,0.08294385]
[1722192644635,1.59769329,68272.0,68271.0,0.14314385]
[1722192644825,1.34033729,68272.0,68271.0,0.14314385]
[1722192644989,1.14267788,68272.0,68271.0,0.14314385]
[1722192645148,0.90832188,68272.0,68271.0,0.14314385]
[1722192645346,0.90948939,68272.0,68271.0,0.14314385]
[1722192645607,0.67396588,68272.0,68271.0,0.14314385]
[1722192645956,0.90832188,68272.0,68271.0,0.14314385]
[1722192646160,0.88532433,68272.0,68271.0,0.16508583]
[1722192646460,0.88532433,68272.0,68271.0,0.14314385]
[1722192646661,0.65096833,68272.0,68271.0,0.14314385]
[1722192646867,0.65096833,68272.0,68271.0,0.16508583]
[1722192647338,0.65096833,68272.0,68271.0,0.14314385]
[1722192647513,0.55133174,68272.0,68271.0,0.14314385]
[1722192647716,0.65038376,68272.0,68271.0,0.14314385]
[1722192648141,0.88473976,68272.0,68271.0,0.14314385]
[1722192648596,0.65038376,68272.0,68271.0,0.14314385]
[1722192649076,0.19157643,68272.0,68271.0,0.57888385]
[1722192649288,0.19700435,68272.0,68271.0,0.81324385]
[1722192649528,0.19700435,68272.0,68271.0,0.83518583]
[1722192649529,0.06491757,68272.0,68271.0,0.83518583]
[1722192649947,0.05491757,68272.0,68271.0,0.83518583]
[1722192650281,0.05791757,68272.0,68271.0,0.83518583]
[1722192650507,0.05891757,68272.0,68271.0,0.83518583]
[1722192650764,0.04917983,68272.0,68271.0,1.06954583]
[1722192650983,0.05017983,68272.0,68271.0,1.06954583]
[1722192651132,0.002,68272.0,68271.0,0.98534583]
[1722192651530,0.001,68272.0,68271.0,1.03534583]
[1722192651777,0.04375609,68278.0,68277.0,0.1432]
[1722192651980,0.03266825,68278.0,68277.0,0.1432]
[1722192652310,0.07642434,68278.0,68277.0,0.493708]
[1722192652583,0.07642434,68278.0,68277.0,0.74992715]
[1722192652785,0.07642434,68278.0,68277.0,0.51558815]
[1722192653099,0.09941536,68278.0,68277.0,0.51558815]
[1722192653353,0.09830239,68278.0,68277.0,0.51558815]
[1722192653503,0.12018044,68278.0,68277.0,0.28024915]
[1722192653732,0.03266825,68278.0,68277.0,0.51458815]
[1722192653847,0.1498698,68278.0,68277.0,0.16308015]
[1722192654047,0.14208596,68278.0,68277.0,0.16308015]
[1722192654248,0.14308596,68278.0,68277.0,0.16308015]
[1722192654712,0.14464016,68278.0,68277.0,0.16308015]
[1722192654910,0.14408596,68278.0,68277.0,0.16308015]
[1722192655166,0.14308596,68278.0,68277.0,0.28024915]
[1722192655326,0.14208596,68278.0,68277.0,0.28024915]
[1722192655521,0.0326498,68278.0,68277.0,0.28024915]
[1722192655722,0.10073995,68280.0,68277.0,0.20164915]
[1722192655969,0.0326498,68279.0,68277.0,0.20164915]
[1722192656146,0.0326498,68279.0,68278.0,0.0786]
[1722192656477,0.099346,68280.0,68278.0,0.0786]
[1722192656672,0.0326498,68279.0,68278.0,0.2175845]
[1722192656873,0.099346,68280.0,68278.0,0.2175845]
[1722192657028,0.01615989,68281.0,68278.0,0.2175845]
[1722192657029,0.0326498,68279.0,68278.0,0.2175845]
[1722192657236,0.06662423,68279.0,68278.0,0.2175845]
[1722192657454,0.03278202,68279.0,68278.0,0.2175845]
[1722192657653,0.03278202,68279.0,68278.0,0.0218165]
[1722192657654,0.117166,68279.0,68278.0,0.0218165]
[1722192657837,0.117166,68279.0,68273.0,0.1432]
[1722192657838,0.117168,68278.0,68273.0,0.1432]
[1722192658031,0.117168,68278.0,68274.0,0.02181957]